[Event "Early-Titled-Tuesday-Blitz-January-23-2024"]
[Site "Chess.com"]
[Date "2024.01.23"]
[Round "4"]
[White "GMBenjaminBok"]
[Black "Glidzhian_Gor"]
[Result "1-0"]
[WhiteElo "2907"]
[BlackElo "2589"]
[TimeControl "180+1"]
[EndTime "8:38:36 PST"]
[Termination "GMBenjaminBok won by resignation"]

1. d4 {[%clk 0:03:00.9]} 1... Nf6 {[%clk 0:02:58.7]} 2. c4 {[%clk 0:03:01]} 2...
c5 {[%clk 0:02:59]} 3. Nf3 {[%clk 0:03:00.9]} 3... cxd4 {[%clk 0:02:57.6]} 4.
Nxd4 {[%clk 0:03:01.8]} 4... g6 {[%clk 0:02:57.8]} 5. g3 {[%clk 0:02:59.5]} 5...
Bg7 {[%clk 0:02:57.8]} 6. Bg2 {[%clk 0:02:59.7]} 6... O-O {[%clk 0:02:58.4]} 7.
Nc3 {[%clk 0:02:59.7]} 7... Nc6 {[%clk 0:02:58.9]} 8. O-O {[%clk 0:02:59.1]}
8... d6 {[%clk 0:02:59.2]} 9. Nxc6 {[%clk 0:02:58.3]} 9... bxc6 {[%clk
0:03:00.1]} 10. Bxc6 {[%clk 0:02:58.7]} 10... Bh3 {[%clk 0:03:00.8]} 11. Bxa8
{[%clk 0:02:53.5]} 11... Qxa8 {[%clk 0:03:01.7]} 12. f3 {[%clk 0:02:53.8]} 12...
Bxf1 {[%clk 0:02:55.5]} 13. Kxf1 {[%clk 0:02:53.5]} 13... Rc8 {[%clk 0:02:56.4]}
14. Qd3 {[%clk 0:02:45]} 14... Qc6 {[%clk 0:02:55.3]} 15. Be3 {[%clk 0:02:39]}
15... a6 {[%clk 0:01:36.4]} 16. b3 {[%clk 0:02:24.2]} 16... e6 {[%clk
0:01:32.7]} 17. Rc1 {[%clk 0:02:18]} 17... Nd7 {[%clk 0:01:24.1]} 18. Ne4 {[%clk
0:02:08.9]} 18... Bf8 {[%clk 0:00:53.8]} 19. Rd1 {[%clk 0:02:01.6]} 19... Rd8
{[%clk 0:00:32.2]} 20. Bg5 {[%clk 0:01:54.7]} 20... Ra8 {[%clk 0:00:22.5]} 21.
Nxd6 {[%clk 0:01:40.9]} 21... Ne5 {[%clk 0:00:20.2]} 22. Qe4 {[%clk 0:01:36.9]}
22... Bxd6 {[%clk 0:00:18.9]} 23. Qxc6 {[%clk 0:01:34.3]} 23... Nxc6 {[%clk
0:00:19.8]} 24. Rxd6 {[%clk 0:01:34.7]} 24... Nb4 {[%clk 0:00:20.5]} 25. Rd2
{[%clk 0:00:56.6]} 25... Nc6 {[%clk 0:00:19.3]} 26. Bf6 {[%clk 0:00:55.3]} 26...
h6 {[%clk 0:00:19.1]} 27. h4 {[%clk 0:00:54.4]} 27... Kh7 {[%clk 0:00:19]} 28.
Kf2 {[%clk 0:00:48.6]} 28... Rc8 {[%clk 0:00:18.8]} 29. g4 {[%clk 0:00:38.4]}
29... g5 {[%clk 0:00:16.9]} 30. hxg5 {[%clk 0:00:37.7]} 30... hxg5 {[%clk
0:00:17.8]} 31. Bxg5 {[%clk 0:00:36.5]} 31... Kg6 {[%clk 0:00:18.4]} 32. Be3
{[%clk 0:00:33.2]} 32... f6 {[%clk 0:00:18.6]} 33. Bb6 {[%clk 0:00:22.8]} 33...
f5 {[%clk 0:00:17.4]} 34. gxf5+ {[%clk 0:00:22]} 34... Kxf5 {[%clk 0:00:18.3]}
35. a3 {[%clk 0:00:21.5]} 35... Rh8 {[%clk 0:00:17.6]} 36. b4 {[%clk 0:00:15.9]}
36... Rh2+ {[%clk 0:00:17]} 37. Kg3 {[%clk 0:00:16.1]} 37... Rh1 {[%clk
0:00:17.5]} 38. c5 {[%clk 0:00:15.5]} 38... Ne5 {[%clk 0:00:17.2]} 39. Rc2
{[%clk 0:00:11.8]} 39... Rg1+ {[%clk 0:00:17.3]} 40. Kf2 {[%clk 0:00:11.6]}
40... Ra1 {[%clk 0:00:18.2]} 41. c6 {[%clk 0:00:11.6]} 41... Rxa3 {[%clk
0:00:18.4]} 42. c7 {[%clk 0:00:11.4]} 42... Rb3 {[%clk 0:00:17.6]} 43. c8=Q
{[%clk 0:00:11.5]} 43... Rxb4 {[%clk 0:00:18.5]} 44. Qf8+ {[%clk 0:00:11.5]} 1-0

[Event "Early-Titled-Tuesday-Blitz-January-23-2024"]
[Site "Chess.com"]
[Date "2024.01.23"]
[Round "4"]
[White "supereagles1201"]
[Black "dennisodessa"]
[Result "0-1"]
[WhiteElo "2359"]
[BlackElo "2635"]
[TimeControl "180+1"]
[EndTime "8:38:36 PST"]
[Termination "dennisodessa won by resignation"]

1. d4 {[%clk 0:03:00.9]} 1... Nf6 {[%clk 0:02:59.5]} 2. Bg5 {[%clk 0:03:00.8]}
2... c5 {[%clk 0:02:58.3]} 3. d5 {[%clk 0:03:00.1]} 3... Qb6 {[%clk 0:02:57.5]}
4. Nc3 {[%clk 0:03:00]} 4... Qxb2 {[%clk 0:02:57.5]} 5. Bd2 {[%clk 0:03:00.2]}
5... Qb6 {[%clk 0:02:57.3]} 6. e4 {[%clk 0:03:00.2]} 6... d6 {[%clk 0:02:57.8]}
7. f4 {[%clk 0:03:00.4]} 7... Bg4 {[%clk 0:02:58]} 8. Nf3 {[%clk 0:02:52.5]}
8... Nbd7 {[%clk 0:02:57.9]} 9. Rb1 {[%clk 0:02:51.6]} 9... Qc7 {[%clk
0:02:58.1]} 10. h3 {[%clk 0:02:49.7]} 10... Bxf3 {[%clk 0:02:57.5]} 11. Qxf3
{[%clk 0:02:50.6]} 11... a6 {[%clk 0:02:58.2]} 12. a4 {[%clk 0:02:49.4]} 12...
g6 {[%clk 0:02:57.9]} 13. Bc4 {[%clk 0:02:36.9]} 13... Bg7 {[%clk 0:02:57.9]}
14. O-O {[%clk 0:02:36.9]} 14... O-O {[%clk 0:02:57.1]} 15. g4 {[%clk
0:02:33.5]} 15... Ne8 {[%clk 0:02:35.3]} 16. Rb3 {[%clk 0:02:22.3]} 16... Rb8
{[%clk 0:02:24]} 17. Rfb1 {[%clk 0:02:21.1]} 17... Qc8 {[%clk 0:02:24.3]} 18.
Ne2 {[%clk 0:02:07.8]} 18... Nc7 {[%clk 0:02:21.1]} 19. a5 {[%clk 0:02:06.1]}
19... e6 {[%clk 0:02:05.2]} 20. Bc3 {[%clk 0:02:01.5]} 20... exd5 {[%clk
0:01:55.7]} 21. exd5 {[%clk 0:02:00.7]} 21... Nf6 {[%clk 0:01:38.5]} 22. Ng3
{[%clk 0:02:00.5]} 22... Re8 {[%clk 0:01:09.5]} 23. Rb6 {[%clk 0:01:58]} 23...
Ncxd5 {[%clk 0:00:56.2]} 24. Bxd5 {[%clk 0:01:55.5]} 24... Nxd5 {[%clk
0:00:56.9]} 25. Bxg7 {[%clk 0:01:37.1]} 25... Nxb6 {[%clk 0:00:56.7]} 26. Ba1
{[%clk 0:01:35.1]} 26... Nd7 {[%clk 0:00:50.2]} 27. Ne4 {[%clk 0:01:28.1]} 27...
Qd8 {[%clk 0:00:14.6]} 28. Nxd6 {[%clk 0:01:22.3]} 28... Re6 {[%clk 0:00:15.2]}
29. Rd1 {[%clk 0:00:53.5]} 29... Qe7 {[%clk 0:00:15.4]} 30. Nc4 {[%clk 0:00:44]}
30... Re1+ {[%clk 0:00:14]} 31. Kf2 {[%clk 0:00:36.7]} 31... Re8 {[%clk
0:00:13.4]} 32. Ne5 {[%clk 0:00:33.8]} 32... Rxd1 {[%clk 0:00:12.6]} 33. Qxd1
{[%clk 0:00:32.8]} 33... Nxe5 {[%clk 0:00:12.8]} 34. Bxe5 {[%clk 0:00:32.3]}
34... f6 {[%clk 0:00:12.1]} 35. Bb2 {[%clk 0:00:24.3]} 35... Qe3+ {[%clk
0:00:12.7]} 36. Kg2 {[%clk 0:00:24.8]} 36... Qe2+ {[%clk 0:00:12.2]} 37. Qxe2
{[%clk 0:00:25.1]} 37... Rxe2+ {[%clk 0:00:12.8]} 38. Kg3 {[%clk 0:00:26]} 38...
Rxc2 {[%clk 0:00:13.5]} 39. Bxf6 {[%clk 0:00:26.5]} 39... Ra2 {[%clk 0:00:12.6]}
40. f5 {[%clk 0:00:26.4]} 40... Rxa5 {[%clk 0:00:12.3]} 41. fxg6 {[%clk
0:00:25.5]} 41... hxg6 {[%clk 0:00:13.2]} 42. h4 {[%clk 0:00:26.1]} 42... Kf7
{[%clk 0:00:13.3]} 43. Bc3 {[%clk 0:00:24.6]} 43... Ra3 {[%clk 0:00:13.2]} 0-1

[Event "Early-Titled-Tuesday-Blitz-January-23-2024"]
[Site "Chess.com"]
[Date "2024.01.23"]
[Round "4"]
[White "Zurability"]
[Black "FARIZA2018"]
[Result "0-1"]
[WhiteElo "2740"]
[BlackElo "2550"]
[TimeControl "180+1"]
[EndTime "8:38:41 PST"]
[Termination "FARIZA2018 won by resignation"]

1. d4 {[%clk 0:03:00.9]} 1... Nf6 {[%clk 0:02:59.4]} 2. c4 {[%clk 0:03:01.5]}
2... e6 {[%clk 0:02:59.4]} 3. Nf3 {[%clk 0:03:02]} 3... d5 {[%clk 0:02:59.6]} 4.
Nc3 {[%clk 0:02:59.4]} 4... Be7 {[%clk 0:02:59.3]} 5. Bg5 {[%clk 0:02:54.7]}
5... O-O {[%clk 0:02:58.8]} 6. e3 {[%clk 0:02:55.3]} 6... h6 {[%clk 0:02:58.6]}
7. Bh4 {[%clk 0:02:48.6]} 7... b6 {[%clk 0:02:58.5]} 8. Rc1 {[%clk 0:02:44.2]}
8... Ba6 {[%clk 0:02:42.1]} 9. Bxf6 {[%clk 0:02:14]} 9... Bxf6 {[%clk
0:02:40.1]} 10. cxd5 {[%clk 0:02:12.2]} 10... Bxf1 {[%clk 0:02:39.1]} 11. Kxf1
{[%clk 0:02:13.1]} 11... exd5 {[%clk 0:02:38.6]} 12. g3 {[%clk 0:02:09.3]} 12...
c6 {[%clk 0:02:31.1]} 13. Kg2 {[%clk 0:02:09]} 13... Qd6 {[%clk 0:02:26.6]} 14.
Ne2 {[%clk 0:02:05]} 14... Nd7 {[%clk 0:02:23.6]} 15. Nf4 {[%clk 0:02:02.6]}
15... Rac8 {[%clk 0:02:20]} 16. h4 {[%clk 0:02:01.8]} 16... Rfe8 {[%clk
0:02:14.6]} 17. Qa4 {[%clk 0:01:53.4]} 17... a5 {[%clk 0:02:13.8]} 18. Rc2
{[%clk 0:01:50.3]} 18... c5 {[%clk 0:02:09.6]} 19. Rhc1 {[%clk 0:01:43.2]} 19...
Rcd8 {[%clk 0:02:06.8]} 20. Qb5 {[%clk 0:01:28.8]} 20... cxd4 {[%clk 0:01:46.4]}
21. exd4 {[%clk 0:01:22.2]} 21... Re4 {[%clk 0:01:45.1]} 22. Qxd5 {[%clk
0:01:10.4]} 22... Qxd5 {[%clk 0:01:19.5]} 23. Nxd5 {[%clk 0:01:10.5]} 23... Nf8
{[%clk 0:01:09.1]} 24. Nxf6+ {[%clk 0:01:07.1]} 24... gxf6 {[%clk 0:01:08.1]}
25. Rc6 {[%clk 0:00:49.7]} 25... Ne6 {[%clk 0:01:06.5]} 26. Rxb6 {[%clk
0:00:45.7]} 26... f5 {[%clk 0:01:04.1]} 27. Rb5 {[%clk 0:00:35.2]} 27... f4
{[%clk 0:01:04]} 28. Re1 {[%clk 0:00:26.5]} 28... Rxe1 {[%clk 0:00:58.8]} 29.
Nxe1 {[%clk 0:00:27.4]} 29... fxg3 {[%clk 0:00:39.7]} 30. Kxg3 {[%clk
0:00:26.2]} 30... Rxd4 {[%clk 0:00:39.1]} 31. Rxa5 {[%clk 0:00:25.1]} 31... Rd2
{[%clk 0:00:38.7]} 32. Rb5 {[%clk 0:00:24.5]} 32... Nd4 {[%clk 0:00:38.6]} 33.
Rb8+ {[%clk 0:00:24.2]} 33... Kg7 {[%clk 0:00:38.3]} 34. a4 {[%clk 0:00:22.1]}
34... Rd1 {[%clk 0:00:35.4]} 35. Ng2 {[%clk 0:00:18.2]} 35... Rd3+ {[%clk
0:00:34.6]} 36. Kf4 {[%clk 0:00:18.6]} 36... f5 {[%clk 0:00:25.8]} 37. Ke5
{[%clk 0:00:15.9]} 37... Nc6+ {[%clk 0:00:22.4]} 38. Kxf5 {[%clk 0:00:07.2]}
38... Nxb8 {[%clk 0:00:23]} 39. Nf4 {[%clk 0:00:07.8]} 39... Rb3 {[%clk
0:00:23.1]} 0-1

[Event "Early-Titled-Tuesday-Blitz-January-23-2024"]
[Site "Chess.com"]
[Date "2024.01.23"]
[Round "4"]
[White "GaiozNigalidze"]
[Black "Ceejay271"]
[Result "1-0"]
[WhiteElo "2708"]
[BlackElo "2510"]
[TimeControl "180+1"]
[EndTime "8:38:41 PST"]
[Termination "GaiozNigalidze won on time"]

1. d4 {[%clk 0:03:00.9]} 1... d5 {[%clk 0:02:59.1]} 2. c4 {[%clk 0:03:00.5]}
2... e6 {[%clk 0:02:59.2]} 3. Nf3 {[%clk 0:02:59.4]} 3... Nf6 {[%clk 0:02:58.9]}
4. Nc3 {[%clk 0:02:59.2]} 4... h6 {[%clk 0:02:58.9]} 5. cxd5 {[%clk 0:02:58.1]}
5... exd5 {[%clk 0:02:58.7]} 6. Bf4 {[%clk 0:02:58.1]} 6... Bd6 {[%clk
0:02:58.5]} 7. g3 {[%clk 0:02:57.3]} 7... Bxf4 {[%clk 0:02:50]} 8. gxf4 {[%clk
0:02:57.2]} 8... c6 {[%clk 0:02:48.7]} 9. Ne5 {[%clk 0:02:53.9]} 9... O-O {[%clk
0:02:46.9]} 10. Qc2 {[%clk 0:02:49.6]} 10... c5 {[%clk 0:02:32.2]} 11. dxc5
{[%clk 0:02:43.8]} 11... Qa5 {[%clk 0:02:22.3]} 12. O-O-O {[%clk 0:02:17.9]}
12... Qxc5 {[%clk 0:02:20.5]} 13. e3 {[%clk 0:02:18.4]} 13... Nc6 {[%clk
0:02:04.6]} 14. Bg2 {[%clk 0:01:53.5]} 14... d4 {[%clk 0:01:52.7]} 15. Bxc6
{[%clk 0:00:39.3]} 15... dxc3 {[%clk 0:01:50.2]} 16. Bf3 {[%clk 0:00:33.6]}
16... cxb2+ {[%clk 0:01:44.4]} 17. Kxb2 {[%clk 0:00:33.6]} 17... Qxc2+ {[%clk
0:01:39.9]} 18. Kxc2 {[%clk 0:00:33.7]} 18... Bf5+ {[%clk 0:01:40.4]} 19. Kb2
{[%clk 0:00:34.1]} 19... Rac8 {[%clk 0:01:34.3]} 20. Rc1 {[%clk 0:00:28.7]}
20... Be4 {[%clk 0:01:32.8]} 21. Bxe4 {[%clk 0:00:15.3]} 21... Nxe4 {[%clk
0:01:32.7]} 22. f3 {[%clk 0:00:15.9]} 22... Nd6 {[%clk 0:01:10.5]} 23. Rhd1
{[%clk 0:00:14.9]} 23... Rxc1 {[%clk 0:01:05.3]} 24. Rxc1 {[%clk 0:00:13.5]}
24... Rc8 {[%clk 0:01:04]} 25. Rd1 {[%clk 0:00:11.8]} 25... Nc4+ {[%clk
0:00:49.5]} 26. Nxc4 {[%clk 0:00:12]} 26... Rxc4 {[%clk 0:00:49.1]} 27. Rd8+
{[%clk 0:00:12.7]} 27... Kh7 {[%clk 0:00:47.1]} 28. Rd7 {[%clk 0:00:13.6]} 28...
Rb4+ {[%clk 0:00:32.7]} 29. Kc3 {[%clk 0:00:13.9]} 29... a5 {[%clk 0:00:19.7]}
30. Rxf7 {[%clk 0:00:13.1]} 30... b5 {[%clk 0:00:19.2]} 31. f5 {[%clk
0:00:12.9]} 31... Kg8 {[%clk 0:00:19.1]} 32. Rb7 {[%clk 0:00:12.1]} 32... Rb1
{[%clk 0:00:17.4]} 33. Kc2 {[%clk 0:00:11.4]} 33... Re1 {[%clk 0:00:07.3]} 34.
Kd3 {[%clk 0:00:08.8]} 34... b4 {[%clk 0:00:06.8]} 35. Rb5 {[%clk 0:00:08.7]}
35... Rh1 {[%clk 0:00:01.9]} 36. Rxa5 {[%clk 0:00:08.7]} 36... Rxh2 {[%clk
0:00:02.4]} 37. e4 {[%clk 0:00:07.7]} 37... Rf2 {[%clk 0:00:01.7]} 38. Ke3
{[%clk 0:00:07.7]} 38... Rb2 {[%clk 0:00:01.6]} 39. Kf4 {[%clk 0:00:05.4]} 1-0

[Event "Early-Titled-Tuesday-Blitz-January-23-2024"]
[Site "Chess.com"]
[Date "2024.01.23"]
[Round "4"]
[White "AttilaTurzo"]
[Black "sterpfi"]
[Result "1-0"]
[WhiteElo "2503"]
[BlackElo "2206"]
[TimeControl "180+1"]
[EndTime "8:38:41 PST"]
[Termination "AttilaTurzo won on time"]

1. d4 {[%clk 0:03:00.9]} 1... d5 {[%clk 0:02:59.9]} 2. Nf3 {[%clk 0:02:59.4]}
2... Nf6 {[%clk 0:02:59.6]} 3. Bf4 {[%clk 0:02:59.5]} 3... e6 {[%clk 0:02:59.5]}
4. e3 {[%clk 0:02:59.6]} 4... Bd6 {[%clk 0:02:59.4]} 5. Nbd2 {[%clk 0:02:58.6]}
5... O-O {[%clk 0:02:57.7]} 6. c3 {[%clk 0:02:58]} 6... c5 {[%clk 0:02:56.9]} 7.
Bd3 {[%clk 0:02:56.2]} 7... Bxf4 {[%clk 0:02:57]} 8. exf4 {[%clk 0:02:56.1]}
8... Qc7 {[%clk 0:02:49.1]} 9. g3 {[%clk 0:02:54.5]} 9... cxd4 {[%clk
0:02:37.9]} 10. Nxd4 {[%clk 0:02:52.6]} 10... e5 {[%clk 0:02:37.2]} 11. fxe5
{[%clk 0:02:53.5]} 11... Qxe5+ {[%clk 0:02:36.3]} 12. Qe2 {[%clk 0:02:50.6]}
12... Re8 {[%clk 0:02:32.1]} 13. Qxe5 {[%clk 0:02:32.6]} 13... Rxe5+ {[%clk
0:02:33]} 14. Kd1 {[%clk 0:02:30.3]} 14... Nc6 {[%clk 0:02:28.2]} 15. Re1 {[%clk
0:02:12.9]} 15... Rxe1+ {[%clk 0:02:23.9]} 16. Kxe1 {[%clk 0:02:12.9]} 16...
Nxd4 {[%clk 0:02:24.5]} 17. cxd4 {[%clk 0:02:13.7]} 17... Bh3 {[%clk 0:02:24.3]}
18. f3 {[%clk 0:02:11.4]} 18... Re8+ {[%clk 0:02:24.2]} 19. Kf2 {[%clk
0:02:11.5]} 19... h5 {[%clk 0:02:12.2]} 20. Rc1 {[%clk 0:02:05.3]} 20... Re7
{[%clk 0:02:10.6]} 21. Nb3 {[%clk 0:01:43]} 21... b6 {[%clk 0:02:09.3]} 22. Rc6
{[%clk 0:01:41.2]} 22... Kf8 {[%clk 0:01:51.8]} 23. Nc1 {[%clk 0:01:40.8]} 23...
Ke8 {[%clk 0:01:30.6]} 24. Ne2 {[%clk 0:01:40.6]} 24... Bd7 {[%clk 0:01:24.1]}
25. Rc7 {[%clk 0:01:33]} 25... Kd8 {[%clk 0:01:23.7]} 26. Rxa7 {[%clk
0:01:31.1]} 26... Bc6 {[%clk 0:01:04.3]} 27. Rxe7 {[%clk 0:01:29.8]} 27... Kxe7
{[%clk 0:01:05.2]} 28. h4 {[%clk 0:01:29.2]} 28... Bd7 {[%clk 0:00:56.7]} 29.
Nc3 {[%clk 0:01:25.1]} 29... Kd6 {[%clk 0:00:55.6]} 30. Ke3 {[%clk 0:01:24.3]}
30... Ne8 {[%clk 0:00:45.3]} 31. a4 {[%clk 0:01:12.2]} 31... Nc7 {[%clk
0:00:42.2]} 32. b4 {[%clk 0:01:10.5]} 32... Ne6 {[%clk 0:00:25.9]} 33. a5 {[%clk
0:01:09.9]} 33... bxa5 {[%clk 0:00:25.3]} 34. bxa5 {[%clk 0:01:10.8]} 34... Bc6
{[%clk 0:00:20]} 35. g4 {[%clk 0:01:00.3]} 35... g6 {[%clk 0:00:09]} 36. gxh5
{[%clk 0:00:54.5]} 36... gxh5 {[%clk 0:00:09.9]} 37. a6 {[%clk 0:00:50.6]} 37...
Kc7 {[%clk 0:00:09.7]} 38. f4 {[%clk 0:00:34.2]} 38... Kb6 {[%clk 0:00:09.2]}
39. f5 {[%clk 0:00:34.5]} 39... Ng7 {[%clk 0:00:07.2]} 40. Kf4 {[%clk
0:00:31.5]} 40... f6 {[%clk 0:00:05.4]} 41. Bb5 {[%clk 0:00:23.5]} 41... Bxb5
{[%clk 0:00:04.4]} 42. Nxb5 {[%clk 0:00:23.2]} 42... Kxa6 {[%clk 0:00:01.6]} 43.
Nc7+ {[%clk 0:00:21.3]} 1-0

[Event "Early-Titled-Tuesday-Blitz-January-23-2024"]
[Site "Chess.com"]
[Date "2024.01.23"]
[Round "4"]
[White "DefiantChair"]
[Black "GothamChess"]
[Result "1-0"]
[WhiteElo "2553"]
[BlackElo "2743"]
[TimeControl "180+1"]
[EndTime "8:38:42 PST"]
[Termination "DefiantChair won by checkmate"]

1. e4 {[%clk 0:03:00.9]} 1... d5 {[%clk 0:02:57.2]} 2. exd5 {[%clk 0:03:00]}
2... Qxd5 {[%clk 0:02:58.1]} 3. Nc3 {[%clk 0:02:58.6]} 3... Qa5 {[%clk
0:02:57.8]} 4. d4 {[%clk 0:02:53.4]} 4... Nf6 {[%clk 0:02:57.8]} 5. Bc4 {[%clk
0:02:51.6]} 5... Bf5 {[%clk 0:02:57.5]} 6. Nf3 {[%clk 0:02:51]} 6... e6 {[%clk
0:02:57.6]} 7. Qe2 {[%clk 0:02:50]} 7... Bb4 {[%clk 0:02:57.5]} 8. Bd2 {[%clk
0:02:48]} 8... O-O {[%clk 0:02:55.3]} 9. O-O-O {[%clk 0:02:45.9]} 9... c6 {[%clk
0:02:46.4]} 10. Ne5 {[%clk 0:02:42.5]} 10... Nd5 {[%clk 0:02:10.8]} 11. Bxd5
{[%clk 0:02:26.2]} 11... exd5 {[%clk 0:01:30.7]} 12. g4 {[%clk 0:02:23.7]} 12...
Be6 {[%clk 0:01:25.5]} 13. a3 {[%clk 0:02:18.9]} 13... Bxc3 {[%clk 0:01:14.8]}
14. Bxc3 {[%clk 0:02:19.8]} 14... Qa6 {[%clk 0:01:07.9]} 15. Qf3 {[%clk
0:02:17.3]} 15... Nd7 {[%clk 0:00:53.2]} 16. Nd3 {[%clk 0:02:17]} 16... b6
{[%clk 0:00:48]} 17. h4 {[%clk 0:02:16.4]} 17... Qc4 {[%clk 0:00:46.3]} 18. h5
{[%clk 0:02:14]} 18... c5 {[%clk 0:00:40.2]} 19. h6 {[%clk 0:01:39.4]} 19...
cxd4 {[%clk 0:00:39.5]} 20. hxg7 {[%clk 0:01:36.8]} 20... Rfc8 {[%clk
0:00:37.4]} 21. Qh3 {[%clk 0:01:11.5]} 21... Nf6 {[%clk 0:00:36.6]} 22. Ne5
{[%clk 0:01:07]} 22... Qa2 {[%clk 0:00:24.4]} 23. Rxd4 {[%clk 0:01:03.5]} 23...
Rxc3 {[%clk 0:00:14]} 24. bxc3 {[%clk 0:01:01.6]} 24... Rc8 {[%clk 0:00:13.7]}
25. Rf4 {[%clk 0:00:51.7]} 25... Qxa3+ {[%clk 0:00:05.2]} 26. Kd2 {[%clk
0:00:50.6]} 26... Kxg7 {[%clk 0:00:02.9]} 27. Qh6+ {[%clk 0:00:18.4]} 27... Kg8
{[%clk 0:00:02.8]} 28. Qxf6 {[%clk 0:00:16.8]} 28... Qxc3+ {[%clk 0:00:03.3]}
29. Ke2 {[%clk 0:00:17.2]} 29... Qxc2+ {[%clk 0:00:02.5]} 30. Kf3 {[%clk
0:00:17.4]} 30... Rc3+ {[%clk 0:00:01.6]} 31. Kg2 {[%clk 0:00:17.7]} 31... d4
{[%clk 0:00:01.9]} 32. Qd8+ {[%clk 0:00:17.2]} 32... Kg7 {[%clk 0:00:02.4]} 33.
Qxd4 {[%clk 0:00:16.5]} 33... Rc5 {[%clk 0:00:02.1]} 34. Qe4 {[%clk 0:00:14]}
34... Bd5 {[%clk 0:00:02.1]} 35. Rxh7+ {[%clk 0:00:12.7]} 35... Kg8 {[%clk
0:00:02.7]} 36. Qxd5 {[%clk 0:00:12.1]} 36... Rxd5 {[%clk 0:00:03.6]} 37. Rh5
{[%clk 0:00:10.6]} 37... Qd2 {[%clk 0:00:03]} 38. Rg5+ {[%clk 0:00:10.1]} 38...
Kf8 {[%clk 0:00:02.8]} 39. Rxf7+ {[%clk 0:00:10.1]} 39... Ke8 {[%clk 0:00:03.4]}
40. Rg8# {[%clk 0:00:10.7]} 1-0

[Event "Early-Titled-Tuesday-Blitz-January-23-2024"]
[Site "Chess.com"]
[Date "2024.01.23"]
[Round "4"]
[White "yaguigor"]
[Black "19912131712118"]
[Result "1-0"]
[WhiteElo "2621"]
[BlackElo "2423"]
[TimeControl "180+1"]
[EndTime "8:38:44 PST"]
[Termination "yaguigor won by resignation"]

1. Nf3 {[%clk 0:02:56.4]} 1... c5 {[%clk 0:03:00]} 2. e4 {[%clk 0:02:55.9]} 2...
e6 {[%clk 0:02:59.6]} 3. d4 {[%clk 0:02:55.5]} 3... cxd4 {[%clk 0:03:00.5]} 4.
Nxd4 {[%clk 0:02:55.7]} 4... Nc6 {[%clk 0:03:01.4]} 5. Nc3 {[%clk 0:02:55]} 5...
a6 {[%clk 0:03:01]} 6. Nxc6 {[%clk 0:02:52.3]} 6... bxc6 {[%clk 0:03:00.9]} 7.
Qf3 {[%clk 0:02:50.2]} 7... d5 {[%clk 0:03:00.6]} 8. Qg3 {[%clk 0:02:47.1]} 8...
Nf6 {[%clk 0:02:57.3]} 9. Be2 {[%clk 0:02:45.5]} 9... d4 {[%clk 0:02:52.1]} 10.
e5 {[%clk 0:02:44.9]} 10... dxc3 {[%clk 0:02:46.4]} 11. exf6 {[%clk 0:02:44.2]}
11... Qxf6 {[%clk 0:02:41.6]} 12. bxc3 {[%clk 0:02:25.5]} 12... Bc5 {[%clk
0:02:28.4]} 13. O-O {[%clk 0:02:19.7]} 13... O-O {[%clk 0:02:28.2]} 14. Bg5
{[%clk 0:02:17.6]} 14... Qg6 {[%clk 0:02:17.2]} 15. Bd3 {[%clk 0:02:16.4]} 15...
f5 {[%clk 0:02:10.5]} 16. Rfe1 {[%clk 0:02:06]} 16... Re8 {[%clk 0:01:54.9]} 17.
Bc4 {[%clk 0:02:00.4]} 17... a5 {[%clk 0:01:35.9]} 18. Bf4 {[%clk 0:01:45]}
18... Qxg3 {[%clk 0:01:31]} 19. hxg3 {[%clk 0:01:44.1]} 19... Ba6 {[%clk
0:01:23]} 20. Bxe6+ {[%clk 0:01:40.8]} 20... Kf8 {[%clk 0:01:20.9]} 21. Bxf5
{[%clk 0:01:35]} 21... g6 {[%clk 0:01:15.9]} 22. Bd3 {[%clk 0:01:25.7]} 22...
Red8 {[%clk 0:00:57.2]} 23. Rad1 {[%clk 0:01:20.3]} 23... Ba3 {[%clk 0:00:37.5]}
24. c4 {[%clk 0:01:03]} 24... Bb4 {[%clk 0:00:30.3]} 25. Re4 {[%clk 0:00:58.1]}
25... Re8 {[%clk 0:00:26.4]} 26. Rxe8+ {[%clk 0:00:44.5]} 26... Rxe8 {[%clk
0:00:25.5]} 27. Kf1 {[%clk 0:00:45.2]} 27... Bc3 {[%clk 0:00:22.4]} 28. Bd2
{[%clk 0:00:42]} 28... Bd4 {[%clk 0:00:21.2]} 29. Bxa5 {[%clk 0:00:39]} 29... c5
{[%clk 0:00:20.4]} 30. Bd2 {[%clk 0:00:37]} 30... Bb7 {[%clk 0:00:19.5]} 31. a4
{[%clk 0:00:36.2]} 31... Kg7 {[%clk 0:00:16.4]} 32. a5 {[%clk 0:00:32.5]} 32...
Rf8 {[%clk 0:00:16]} 33. Be1 {[%clk 0:00:27.2]} 33... Be5 {[%clk 0:00:12.3]} 34.
Kg1 {[%clk 0:00:24.3]} 34... h5 {[%clk 0:00:11]} 35. Rb1 {[%clk 0:00:23.5]}
35... Bc6 {[%clk 0:00:08.9]} 36. Rb6 {[%clk 0:00:21.9]} 36... Rf6 {[%clk
0:00:08.2]} 37. a6 {[%clk 0:00:20.3]} 37... Bc7 {[%clk 0:00:08.2]} 38. Rb1
{[%clk 0:00:16.1]} 38... Ba8 {[%clk 0:00:03.9]} 39. Bc3 {[%clk 0:00:14.9]} 39...
Kf7 {[%clk 0:00:02.8]} 40. Bxf6 {[%clk 0:00:14.9]} 40... Kxf6 {[%clk 0:00:03.7]}
41. a7 {[%clk 0:00:15.1]} 41... Ke6 {[%clk 0:00:02.8]} 42. Rb8 {[%clk
0:00:14.6]} 1-0